bitfinex/quotes_BTCUSD_20260311
["timestamp","ask_amount","ask_price","bid_price","bid_amount"]
[1773250505465,0.00144,71029.0,70996.0,0.0014]
[1773250505672,0.00144,71029.0,70989.0,0.07043245]
[1773250505673,0.12501984,71020.0,70986.0,0.0014]
[1773250505839,0.00144,71019.0,70986.0,0.0014]
[1773250507575,0.07040468,71018.0,70992.0,0.00014086]
[1773250508622,0.00144,71017.0,70992.0,0.00014086]
[1773250509443,0.00144,71016.0,70992.0,0.00014086]
[1773250509641,0.07040766,71015.0,70992.0,0.00014086]
[1773250510025,0.07184766,71015.0,70992.0,0.00014086]
[1773250510232,0.07040766,71015.0,70992.0,0.00014086]
[1773250510441,0.07040766,71016.0,70992.0,0.00014086]
[1773250511492,0.07039873,71024.0,70993.0,0.615083]
[1773250511785,0.00144,71028.0,70993.0,0.615083]
[1773250511786,0.07039576,71027.0,70995.0,0.394154]
[1773250512571,0.07038981,71033.0,71001.0,0.685981]
[1773250512774,0.07038981,71033.0,71000.0,0.12501984]
[1773250512775,0.07038981,71033.0,71003.0,0.657821]
[1773250513158,0.07038981,71033.0,71003.0,0.158222]
[1773250513898,0.07038191,71041.0,71003.0,0.158222]
[1773250513899,0.07052662,71037.0,71005.0,0.611246]
[1773250514132,0.07052662,71037.0,71006.0,0.822276]
[1773250514350,0.07052662,71037.0,71006.0,0.733047]
[1773250514351,0.07052681,71037.0,71006.0,0.733047]
[1773250514590,0.00014077,71037.0,71006.0,0.733047]
[1773250515028,0.07052677,71037.0,71006.0,0.733047]
[1773250515172,0.00022001,71019.0,71006.0,0.733047]
[1773250515376,0.00014077,71037.0,71006.0,0.733047]
[1773250515766,0.00022001,71027.0,71007.0,0.07041559]
[1773250515968,0.00022001,71038.0,71008.0,0.874979]
[1773250516160,0.00022001,71038.0,71008.0,0.706819]
[1773250517290,0.07038585,71037.0,71008.0,0.001]
[1773250517495,0.07038585,71037.0,71009.0,0.00144]
[1773250517716,0.07038585,71037.0,71010.0,0.07041261]
[1773250519522,0.00022001,71038.0,71010.0,0.07041261]
[1773250519720,0.00022001,71038.0,71010.0,0.19543245]
[1773250520145,0.00022001,71038.0,71010.0,0.07041261]
[1773250520290,0.00022001,71038.0,71010.0,0.07141261]
[1773250520841,0.00022001,71046.0,71020.0,0.12501984]
[1773250521045,0.00022001,71046.0,71021.0,0.00144]
[1773250521344,0.00022001,71046.0,71023.0,0.105375]
[1773250521550,0.00022001,71046.0,71024.0,0.00144]
[1773250521955,0.00022001,71046.0,71025.0,0.07039774]
[1773250523056,0.00022001,71046.0,71026.0,0.481088]
[1773250523457,0.00022001,71046.0,71027.0,0.00144]
[1773250523802,0.00022001,71046.0,71028.0,0.00144]
[1773250523995,0.00022001,71046.0,71029.0,0.07039378]
[1773250524554,0.00033147,71046.0,71029.0,0.07039378]
[1773250525629,0.00033147,71046.0,71029.0,0.07139378]
[1773250526003,0.00033147,71046.0,71029.0,0.07039378]
[1773250526751,0.00033147,71046.0,71030.0,1.003886]
[1773250526957,0.00033147,71046.0,71030.0,0.292731]
[1773250527164,0.00033147,71046.0,71030.0,0.1953]
[1773250528040,0.00070941,71049.0,71032.0,0.59328]
[1773250528216,0.00014073,71058.0,71032.0,0.59339146]
[1773250528399,0.00014073,71058.0,71033.0,0.389156]
[1773250528997,0.07057903,71066.0,71033.0,0.389156]
[1773250529651,0.07057903,71066.0,71033.0,0.391156]
[1773250529847,0.07057903,71066.0,71034.0,0.39701]
[1773250530024,0.07057903,71066.0,71036.0,0.396994]
[1773250530226,0.07057903,71066.0,71037.0,0.00144]
[1773250531180,0.07057779,71066.0,71040.0,0.12501984]
[1773250531413,0.07057779,71066.0,71041.0,0.110624]
[1773250531414,0.00022001,71066.0,71041.0,0.110624]
[1773250531575,0.07056935,71074.0,71040.0,0.12501984]
[1773250531576,0.07056926,71074.0,71040.0,0.12501984]
[1773250531869,0.07056926,71074.0,71033.0,0.07238783]
[1773250531870,0.00022001,71074.0,71051.0,0.446465]
[1773250532176,0.07056962,71074.0,71052.0,0.07181099]
[1773250532528,0.07056962,71074.0,71053.0,0.00144]
[1773250532966,0.07056962,71074.0,71052.0,0.07037099]
[1773250533169,0.00022001,71074.0,71053.0,0.00144]
[1773250534113,0.00022001,71066.0,71054.0,0.07036901]
[1773250535299,0.00022001,71066.0,71055.0,0.667107]
[1773250535778,0.0004894,71076.0,71054.0,0.07136901]
[1773250536096,0.0004894,71076.0,71056.0,0.07036703]
[1773250536097,0.00060086,71076.0,71056.0,0.07036703]
[1773250536726,0.07094833,71076.0,71056.0,0.07036703]
[1773250536880,0.00060086,71076.0,71056.0,0.07036703]
[1773250537631,0.00060086,71076.0,71056.0,0.07136703]
[1773250537790,0.00060086,71076.0,71054.0,0.07136901]
[1773250537791,0.00060086,71076.0,71057.0,0.00144]
[1773250538259,0.00060086,71076.0,71058.0,0.07036505]
[1773250539495,0.00060086,71076.0,71058.0,0.07136505]
[1773250539695,0.00060086,71076.0,71058.0,0.07036505]
[1773250540021,0.00022001,71081.0,71058.0,0.07136505]
[1773250540230,0.00022001,71081.0,71058.0,0.07047651]
[1773250541013,0.00140671,71088.0,71070.0,0.12501984]
[1773250541216,0.00140671,71088.0,71071.0,0.00144]
[1773250541417,0.00140671,71088.0,71073.0,0.141165]
[1773250541633,0.00140671,71088.0,71074.0,0.00144]
[1773250541831,0.0002,71097.0,71074.0,0.00144]
[1773250542031,0.0002,71097.0,71075.0,0.552536]
[1773250542255,0.07032942,71095.0,71059.0,0.07036406]
[1773250542436,0.07032942,71095.0,71071.0,0.001]
[1773250542635,0.00144,71093.0,71060.0,0.00144]
[1773250543033,0.00144,71093.0,71074.0,0.002]
[1773250543664,0.00144,71093.0,71074.0,0.001]
[1773250544260,0.0703314,71092.0,71069.0,0.00144]
[1773250544887,0.00144,71091.0,71069.0,0.00144]
[1773250546599,0.07033338,71090.0,71069.0,0.00144]
[1773250547900,0.07033338,71090.0,71069.0,0.07179405]
[1773250548052,0.07033338,71090.0,71069.0,0.07179394]
[1773250548398,0.08156459,71099.0,71070.0,0.702692]
[1773250548597,0.07052652,71097.0,71071.0,0.07035218]
[1773250548747,0.07052656,71097.0,71071.0,0.07035218]
[1773250549367,0.0002,71097.0,71071.0,0.07035218]
[1773250549710,0.0002,71097.0,71072.0,0.290986]
[1773250549908,0.07052657,71097.0,71071.0,0.07035218]
[1773250550249,0.07052657,71097.0,71072.0,0.00144]
[1773250550706,0.07052657,71097.0,71073.0,0.0717902]
[1773250552336,0.07063667,71097.0,71073.0,0.0717902]
[1773250553156,0.07063667,71097.0,71073.0,0.0727902]
[1773250553588,0.07063667,71097.0,71073.0,0.0717902]
[1773250553948,0.00144,71096.0,71073.0,0.001]
[1773250554185,0.12501984,71090.0,71058.0,0.00155146]
[1773250554838,0.12501984,71080.0,71058.0,0.00011146]
[1773250555140,0.00144,71089.0,71058.0,0.00011146]
[1773250555141,0.07033535,71088.0,71058.0,0.00011146]
[1773250555296,0.0001101,71086.0,71058.0,0.00011146]
[1773250555496,0.12501984,71080.0,71058.0,0.00011146]
[1773250555904,0.12501984,71070.0,71026.0,0.34694038]
[1773250556100,0.1251312,71070.0,71033.0,0.07178963]
[1773250556356,0.00144,71069.0,71033.0,0.07178963]
[1773250556481,0.00144,71069.0,71033.0,0.0014]
[1773250556681,0.00144,71069.0,71012.0,0.27654365]
[1773250556682,0.12501984,71060.0,71020.0,0.0704027]
[1773250556890,0.12501984,71060.0,71022.0,0.0014]
[1773250557090,0.00144,71059.0,71024.0,0.07039873]
[1773250557292,0.00144,71058.0,71025.0,0.00189473]
[1773250557492,0.00144,71057.0,71025.0,0.00189473]
[1773250557694,0.00144,71056.0,71025.0,0.00189473]
[1773250557921,0.00144,71055.0,71025.0,0.00189473]
[1773250558114,0.00144,71054.0,71025.0,0.00189473]
[1773250558312,0.00144,71053.0,71025.0,0.00189473]
[1773250558571,0.00144,71052.0,71025.0,0.00189473]
[1773250558718,0.07035614,71067.0,71025.0,0.00189473]
[1773250558719,0.00144,71051.0,71025.0,0.00189473]
[1773250558905,0.00144,71050.0,71025.0,0.00189473]
[1773250559104,0.07037495,71048.0,71026.0,0.07039675]
[1773250559307,0.07019641,71048.0,71027.0,0.00189467]
[1773250560162,0.07019641,71048.0,71016.0,0.07040602]
[1773250560163,0.07019641,71048.0,70995.0,0.0002]
[1773250560164,0.12485999,71037.0,70995.0,0.0002]
[1773250560552,0.0014,71036.0,71027.0,0.00011146]
[1773250560751,0.0014,71035.0,70996.0,0.0014]
[1773250560897,0.0014,71034.0,70996.0,0.00177175]
[1773250561096,0.0703908,71032.0,70997.0,0.07042551]
[1773250561301,0.0703908,71032.0,70996.0,0.00037175]
[1773250561503,0.12450289,71020.0,70995.0,0.0002]
[1773250561721,0.12450289,71020.0,70983.0,0.00132]
[1773250561722,0.00136,71019.0,70983.0,0.00132]
[1773250561886,0.12485999,71010.0,70980.0,0.0002]
[1773250562093,0.12485999,71000.0,70959.0,0.03609134]
[1773250562292,0.00136,70999.0,70959.0,0.03609134]
[1773250562538,0.00136,70999.0,70956.0,0.07046585]
[1773250562747,0.12485999,71010.0,70964.0,0.07045788]
[1773250562907,0.0324595,71019.0,70966.0,0.00132]
[1773250563127,0.0014,71018.0,70966.0,0.00132]
[1773250563295,0.07040567,71017.0,70970.0,0.12485999]
[1773250563646,0.07040567,71017.0,70971.0,0.601738]
[1773250563854,0.0014,71016.0,70971.0,0.546868]
[1773250564056,0.0014,71016.0,70971.0,0.253511]
[1773250564253,0.07040567,71017.0,70968.0,0.220231]
[1773250564458,0.0014,71015.0,70968.0,0.220231]
[1773250564871,0.07040567,71017.0,70981.0,0.564726]
[1773250565068,0.07040567,71017.0,70967.0,0.07045528]
[1773250565069,0.07180567,71017.0,71012.0,0.00022]
[1773250565300,0.07180567,71017.0,70999.0,0.00136]
[1773250566120,0.07180567,71017.0,70972.0,0.07044833]
[1773250566326,0.07180567,71017.0,70960.0,0.12485999]
[1773250566327,0.07180567,71017.0,70973.0,0.00136]
[1773250566523,0.07180567,71017.0,70974.0,0.00136]
[1773250567035,0.07180567,71017.0,70956.0,0.01365617]
[1773250567036,0.12468147,71010.0,70971.0,0.00136]
[1773250567219,0.12485999,71010.0,70966.0,0.00136]
[1773250567426,0.0704136,71009.0,70966.0,0.00136]
[1773250567599,0.0014,71008.0,70966.0,0.00136]
[1773250568006,0.00125925,71008.0,70966.0,0.00136]
[1773250568204,0.00111843,71008.0,70966.0,0.00136]
[1773250568560,0.12485999,71000.0,70965.0,0.0004861]
[1773250568738,0.0014,70999.0,70965.0,0.0004861]
[1773250569458,0.0014,70999.0,70957.0,0.0025573]
[1773250569459,0.12485999,70990.0,70957.0,0.0025573]
[1773250569658,0.00157884,70989.0,70957.0,0.0025573]
[1773250570650,0.00157884,70989.0,70957.0,0.00011151]
[1773250570851,0.00157884,70989.0,70938.0,0.0004861]
[1773250570852,0.12485999,70980.0,70938.0,0.0004861]
[1773250571066,0.12485999,70980.0,70941.0,0.07048053]
[1773250571277,0.12468137,70970.0,70946.0,0.00011136]
[1773250571491,0.07185329,70969.0,70946.0,0.00011136]
[1773250571711,0.0014,70968.0,70946.0,0.00011136]
[1773250572196,0.12485999,70960.0,70915.0,0.07050599]
[1773250572397,0.12485999,70960.0,70928.0,0.0003725]
[1773250572826,0.07045329,70969.0,70928.0,0.0003725]
[1773250573051,0.12485999,70950.0,70928.0,1e-08]
[1773250573281,0.00091135,70949.0,70928.0,1e-08]
[1773250573492,0.0701169,70948.0,70928.0,1e-08]
[1773250573702,0.0014,70947.0,70928.0,1e-08]
[1773250573915,0.0014,70946.0,70928.0,1e-08]
[1773250574132,0.06993823,70948.0,70928.0,1e-08]
[1773250574358,0.12485999,70940.0,70881.0,0.00136]
[1773250574563,0.12485999,70940.0,70879.0,0.07054273]
[1773250574564,0.1252308,70940.0,70879.0,0.07054273]
[1773250574803,0.12508987,70940.0,70899.0,0.0711171]
[1773250575051,0.12508987,70940.0,70922.0,0.000141]
[1773250575520,0.12508987,70940.0,70899.0,0.07111749]
[1773250575521,0.07048309,70939.0,70899.0,0.07111749]
[1773250575722,0.00144,70938.0,70899.0,0.07111749]
[1773250575898,0.00144,70938.0,70899.0,0.000595]
[1773250576100,0.00144,70938.0,70899.0,0.07111751]
[1773250576424,0.00144,70938.0,70899.0,0.07111754]
[1773250576584,0.07148309,70939.0,70899.0,0.07111754]
[1773250576784,0.806575,70937.0,70871.0,0.01124]
[1773250576992,0.12485999,70910.0,70871.0,0.01124]
[1773250577212,0.11708,70935.0,70880.0,0.12485999]
[1773250577408,0.07049534,70927.0,70881.0,0.07054076]
[1773250577607,0.07049534,70927.0,70880.0,0.0012]
[1773250577608,0.12485999,70920.0,70880.0,0.0012]
[1773250577882,0.00144,70919.0,70880.0,0.0012]
[1773250578145,0.12485999,70910.0,70894.0,1e-08]
[1773250578469,0.07049534,70927.0,70875.0,0.00840952]
[1773250578470,0.00144,70909.0,70875.0,0.07895594]
[1773250578678,0.12485999,70920.0,70875.0,0.00852118]
[1773250578876,0.24321999,70920.0,70875.0,0.07906714]
[1773250579171,0.00144,70919.0,70875.0,0.07906714]
[1773250579487,0.00144,70919.0,70825.0,0.0006711]
[1773250579488,0.00729,70865.0,70825.0,0.0006711]
[1773250579597,0.00729,70865.0,70843.0,0.0003719]
[1773250579824,0.00144,70864.0,70843.0,0.0003719]
[1773250580044,0.01843416,70869.0,70843.0,0.0003719]
[1773250580045,0.01843416,70869.0,70843.0,0.07095008]
[1773250580248,0.01843416,70869.0,70844.0,0.108141]
[1773250580476,0.01843416,70869.0,70843.0,0.07095008]
[1773250580675,0.01843416,70869.0,70844.0,0.1556]
[1773250581238,0.01843416,70869.0,70844.0,0.0705776]
[1773250582168,0.001,70865.0,70844.0,0.0705776]
[1773250582373,0.00144,70864.0,70844.0,0.0705776]
[1773250582585,0.00144,70864.0,70843.0,0.0709495]
[1773250583192,0.00144,70868.0,70843.0,0.0709495]
[1773250583830,0.07053463,70888.0,70843.0,0.0709495]
[1773250584004,0.02128237,70887.0,70844.0,0.595657]
[1773250584432,0.01984237,70887.0,70844.0,0.595657]
[1773250584633,0.00144,70886.0,70844.0,0.595657]
[1773250584971,0.12485999,70870.0,70844.0,0.001]
[1773250585143,0.00144,70869.0,70844.0,0.001]
[1773250585485,0.0705537,70868.0,70843.0,0.0003719]
[1773250585881,0.00144,70867.0,70843.0,0.0003719]
[1773250586238,0.00144,70866.0,70843.0,0.0003719]
[1773250586655,0.00144,70866.0,70844.0,0.0002]
[1773250586910,0.00144,70866.0,70860.0,0.00014112]
[1773250587109,0.00144,70866.0,70844.0,0.0002]
[1773250587315,0.12485999,70860.0,70836.0,0.0002]
[1773250587519,0.07056266,70859.0,70836.0,0.0002]
[1773250587794,0.00144,70858.0,70836.0,0.0002]
[1773250588459,0.07056266,70859.0,70836.0,0.0002]
[1773250588661,0.00144,70858.0,70836.0,0.0002]
[1773250589147,0.00144,70858.0,70822.0,0.07059907]
[1773250589148,0.00244,70858.0,70800.0,0.07062102]
[1773250589354,0.07056465,70857.0,70808.0,0.07061299]
[1773250589558,0.07056465,70857.0,70815.0,0.07316366]
[1773250589943,0.07056465,70857.0,70789.0,0.33903304]
[1773250589944,2.001071,70856.0,70771.0,0.05400891]
[1773250590102,0.12485999,70840.0,70804.0,0.07202741]
[1773250590308,0.00144,70839.0,70804.0,0.07202741]
[1773250590505,0.12485999,70850.0,70804.0,0.07202775]
[1773250590722,0.00144,70849.0,70804.0,0.07202775]
[1773250591285,0.00144,70848.0,70810.0,0.12485999]
[1773250591536,0.06156465,70857.0,70813.0,0.344131]
[1773250591710,0.00144,70856.0,70813.0,0.344131]
[1773250591917,0.00144,70855.0,70813.0,0.344131]
[1773250593115,0.00144,70855.0,70814.0,0.371268]
[1773250593331,0.00144,70855.0,70814.0,0.138647]
[1773250593550,0.07056764,70854.0,70815.0,0.0719265]
[1773250593970,0.07056764,70854.0,70815.0,0.0706065]
[1773250594177,0.12485999,70850.0,70816.0,0.00132]
[1773250594511,0.00144,70849.0,70817.0,0.295959]
[1773250594753,0.00144,70848.0,70817.0,0.295959]
[1773250594920,0.00144,70848.0,70816.0,0.00132]
[1773250595163,0.12485999,70850.0,70816.0,0.00132]
[1773250595293,0.07709785,70854.0,70816.0,0.00132]
[1773250595294,0.00144,70849.0,70816.0,0.00132]
[1773250595506,0.07057362,70848.0,70816.0,0.00132]
[1773250595702,0.00144,70847.0,70816.0,0.00132]
[1773250596112,0.00144,70847.0,70808.0,0.00136]
[1773250596439,0.00144,70847.0,70806.0,0.07061498]
[1773250596440,0.12485999,70830.0,70804.0,1e-08]
[1773250596657,0.00144,70829.0,70804.0,1e-08]
[1773250597170,0.00144,70828.0,70804.0,1e-08]
[1773250597331,0.12485999,70820.0,70804.0,1e-08]
[1773250597576,0.07060351,70818.0,70804.0,1e-08]
[1773250598159,0.00144,70817.0,70804.0,1e-08]
[1773250598685,0.00129888,70817.0,70804.0,1e-08]
[1773250598884,0.07160351,70818.0,70791.0,0.0706304]
[1773250599084,0.07160351,70818.0,70789.0,0.07083221]
[1773250599085,0.00144,70817.0,70789.0,0.07083221]
[1773250599266,0.07060351,70818.0,70792.0,0.07062933]
[1773250599471,0.00144,70816.0,70790.0,0.07063123]
[1773250599688,0.0690065,70815.0,70789.0,0.07083213]
[1773250599912,0.07060551,70818.0,70797.0,0.07062446]
[1773250600058,0.07060351,70818.0,70797.0,0.07062446]
[1773250600434,0.07060351,70818.0,70796.0,0.07082446]
[1773250600435,0.00144,70817.0,70796.0,0.07082446]
[1773250600563,0.00144,70817.0,70796.0,0.0002]
[1773250601440,0.07060351,70818.0,70796.0,0.0002]
[1773250601592,0.00144,70816.0,70796.0,0.0002]
[1773250601791,0.0706065,70815.0,70796.0,0.0002]
[1773250602038,0.00144,70814.0,70796.0,0.0002]
[1773250602250,0.0706065,70815.0,70796.0,0.0002]
[1773250602422,0.00144,70813.0,70796.0,0.0002]
[1773250603027,0.00144,70812.0,70796.0,0.0002]
[1773250603580,0.07061049,70811.0,70796.0,0.0002]
[1773250604012,0.00148,70810.0,70789.0,0.0002]
[1773250604214,0.00148,70810.0,70761.0,0.00152]
[1773250604215,0.12485999,70800.0,70761.0,0.00152]
[1773250604383,0.00148,70810.0,70762.0,0.01231906]
[1773250604384,0.12485999,70810.0,70762.0,0.01231906]
[1773250604598,0.07061049,70811.0,70764.0,0.704211]
[1773250604794,0.07061049,70811.0,70766.0,0.592271]
[1773250604795,0.00148,70809.0,70766.0,0.592271]
[1773250605101,0.00148,70809.0,70768.0,0.564011]
[1773250605299,0.00148,70808.0,70769.0,0.01231906]
[1773250605506,0.00148,70808.0,70770.0,0.01231906]
[1773250605716,0.07061049,70814.0,70765.0,0.0014]
[1773250605717,0.12485999,70800.0,70767.0,0.0706544]
[1773250606021,0.07060351,70818.0,70761.0,0.00012]
[1773250606022,0.00148,70799.0,70763.0,0.0014]
[1773250606225,0.12485999,70810.0,70763.0,0.0014]
[1773250606226,0.00148,70798.0,70764.0,0.01232705]
[1773250606353,0.12485999,70810.0,70765.0,0.01232705]
[1773250606555,0.12485999,70810.0,70766.0,0.01232705]
[1773250606556,0.00148,70809.0,70766.0,0.01232705]
[1773250606868,0.00148,70809.0,70767.0,0.01232705]
[1773250607065,0.00148,70809.0,70768.0,0.01233714]
[1773250607298,0.12485999,70800.0,70762.0,0.07065882]
[1773250607498,0.00148,70799.0,70763.0,0.01234775]
[1773250607837,0.00148,70799.0,70761.0,0.07077939]
[1773250607838,0.12485999,70790.0,70761.0,0.00012]
[1773250608028,0.00136,70789.0,70761.0,0.07078023]
[1773250608238,0.12485999,70790.0,70761.0,0.07078023]
[1773250608239,0.07062446,70797.0,70762.0,0.01235652]
[1773250608481,0.07062446,70797.0,70763.0,0.01235652]
[1773250608700,0.07062446,70797.0,70761.0,0.07078023]
[1773250608701,0.00148,70796.0,70764.0,0.01235652]
[1773250608917,0.00148,70796.0,70765.0,0.01235652]
[1773250609062,0.00148,70796.0,70761.0,0.07077982]
[1773250609236,0.00148,70796.0,70762.0,0.01235464]
[1773250609438,0.00148,70796.0,70768.0,0.0002]
[1773250609639,0.00148,70796.0,70769.0,0.0706524]
[1773250609640,0.07062645,70795.0,70769.0,0.0706524]
[1773250609846,0.07062645,70795.0,70770.0,0.01235839]
[1773250610086,0.00148,70794.0,70771.0,0.01235839]
[1773250610297,0.07062645,70795.0,70769.0,0.0706524]
[1773250610511,0.00133875,70793.0,70769.0,0.0706524]
[1773250611052,0.07062645,70795.0,70769.0,0.0706524]
[1773250611255,0.00148,70794.0,70769.0,0.0706524]
[1773250611574,0.00148,70794.0,70768.0,0.0708524]
[1773250611799,0.12485999,70790.0,70768.0,0.0002]
[1773250612232,0.07062845,70793.0,70768.0,0.0002]
[1773250613544,0.00148,70792.0,70768.0,0.0002]
[1773250613727,0.07063044,70791.0,70768.0,0.0002]
[1773250614334,0.07063044,70791.0,70762.0,0.00014132]
[1773250614335,0.12633999,70790.0,70762.0,0.00014132]
[1773250614960,0.1328702,70790.0,70762.0,0.00014132]
[1773250615614,0.1328702,70790.0,70753.0,0.0002]
[1773250615615,0.12485999,70780.0,70753.0,0.0002]
[1773250615775,0.07212242,70779.0,70757.0,1e-08]
[1773250616273,0.00148,70778.0,70757.0,1e-08]
[1773250616893,0.00184981,70778.0,70757.0,1e-08]
[1773250617141,0.00036981,70778.0,70757.0,1e-08]
[1773250617347,0.00148,70777.0,70757.0,1e-08]
[1773250617814,0.07064541,70776.0,70757.0,1e-08]
[1773250618023,0.1259004,70770.0,70753.0,1e-08]
[1773250618271,0.07064541,70776.0,70753.0,1e-08]
[1773250618272,0.01211421,70769.0,70753.0,1e-08]
[1773250618485,0.01063421,70769.0,70753.0,1e-08]
[1773250618654,0.00148,70768.0,70753.0,1e-08]
[1773250618867,0.01063421,70769.0,70753.0,1e-08]
[1773250619092,0.01063421,70769.0,70748.0,6.159e-05]
[1773250619306,0.01063421,70769.0,70705.0,0.03800648]
[1773250619307,0.00148,70768.0,70731.0,0.00143974]
[1773250619523,0.00148,70767.0,70732.0,0.07068921]
[1773250619748,0.07065539,70766.0,70732.0,0.07068927]
[1773250619971,0.01065023,70765.0,70731.0,0.0721281]
[1773250620263,0.01213023,70765.0,70733.0,0.07210062]
[1773250620477,0.00148,70764.0,70733.0,0.07209991]
[1773250620707,0.01065023,70765.0,70733.0,0.07209991]
[1773250620930,0.00148,70764.0,70733.0,0.07209991]
[1773250621164,0.00148,70763.0,70733.0,0.07210019]
[1773250621370,0.00148,70763.0,70733.0,0.00141234]
[1773250621580,0.00148,70763.0,70731.0,0.00143974]
[1773250621581,0.1259004,70750.0,70731.0,0.00143974]
[1773250621785,0.07067337,70748.0,70733.0,0.001]
[1773250621941,0.00148,70747.0,70733.0,0.001]
[1773250622140,0.00148,70746.0,70733.0,0.001]
[1773250622374,0.00142374,70746.0,70731.0,0.00143974]
[1773250622547,0.00137374,70746.0,70731.0,0.00143974]
[1773250622765,0.00174332,70746.0,70731.0,0.00143974]
[1773250623153,0.00036958,70746.0,70733.0,0.0002]
[1773250623467,0.07067337,70750.0,70733.0,0.0002]
[1773250623468,0.11868,70778.0,70733.0,0.0002]
[1773250623672,0.01063377,70758.0,70733.0,0.00056958]
[1773250623874,0.07214438,70757.0,70734.0,0.07068736]
[1773250624200,0.07066438,70757.0,70734.0,0.00144]
[1773250624356,0.00148,70756.0,70734.0,0.00144]
[1773250624551,0.08129815,70758.0,70734.0,0.00144]
[1773250624552,0.01063377,70758.0,70734.0,0.00144]
[1773250624785,0.16704919,70787.0,70734.0,0.00144]
[1773250624786,0.00561662,70773.0,70735.0,0.292769]
[1773250624951,0.00148,70772.0,70734.0,0.00144]
[1773250625152,0.1259004,70770.0,70734.0,0.00144]
[1773250625356,0.00148,70772.0,70734.0,0.00144]
[1773250625357,0.01214683,70769.0,70734.0,0.00144]
[1773250625562,0.01214683,70769.0,70733.0,0.00056958]
[1773250625764,0.0706544,70767.0,70733.0,0.00056958]
[1773250625967,0.01716383,70766.0,70733.0,0.00056958]
[1773250626171,0.00144,70765.0,70733.0,0.00056958]
[1773250626369,0.0706544,70767.0,70733.0,0.00056958]
[1773250626370,0.01358683,70764.0,70733.0,0.00056958]
[1773250626570,0.01063398,70763.0,70733.0,0.00056958]
[1773250626794,0.1259004,70760.0,70733.0,0.00056958]
[1773250627032,0.01716615,70759.0,70719.0,0.00144]
[1773250627201,0.01897596,70759.0,70719.0,0.00144]
[1773250627360,0.01897596,70759.0,70712.0,0.07070735]
[1773250627963,0.07066338,70758.0,70713.0,0.164137]
[1773250628268,0.01716549,70757.0,70712.0,0.07070735]
[1773250628406,0.01716549,70757.0,70710.0,0.07298519]
[1773250628604,0.01716549,70757.0,70700.0,0.01174]
[1773250628605,0.1259004,70730.0,70700.0,0.01174]
[1773250628925,0.01063528,70757.0,70700.0,0.08246086]
[1773250628926,0.04251005,70746.0,70700.0,0.08246086]
[1773250629122,0.01207732,70745.0,70700.0,0.08246086]
[1773250629323,0.00144,70744.0,70700.0,0.08246086]
[1773250629492,0.01063732,70745.0,70700.0,0.01174]
[1773250629493,0.1259004,70740.0,70700.0,0.01174]
[1773250629695,0.07070235,70719.0,70687.0,0.00144]
[1773250629920,0.07070235,70719.0,70674.0,0.07474419]
[1773250629921,0.1258504,70710.0,70674.0,0.07474419]
[1773250630165,0.00144,70709.0,70674.0,0.0025573]
[1773250630573,0.07070235,70719.0,70674.0,0.07330435]
[1773250630574,0.00144,70708.0,70674.0,0.07330435]
[1773250630806,0.00144,70707.0,70674.0,0.0025573]
[1773250630958,0.07070235,70719.0,70674.0,0.0025573]
[1773250630959,0.1259004,70700.0,70674.0,0.0025573]
[1773250631219,0.00144,70699.0,70672.0,0.0001415]
[1773250631834,0.07072335,70698.0,70672.0,0.0001415]
[1773250632345,0.00035728,70697.0,70672.0,0.0001415]
[1773250632492,0.00035728,70697.0,70647.0,0.07217407]
[1773250632493,0.1259004,70690.0,70647.0,0.07217407]
[1773250632697,0.00144,70689.0,70647.0,0.07217359]
[1773250632906,0.1259004,70670.0,70643.0,0.01124]
[1773250633104,0.00144,70669.0,70623.0,0.0014]
[1773250633305,0.1259004,70660.0,70623.0,0.0014]
[1773250633533,0.11876,70685.0,70630.0,0.280804]
[1773250633710,0.00144,70684.0,70631.0,0.333471]
[1773250633907,0.00144,70683.0,70633.0,0.426869]
[1773250634109,0.00144,70683.0,70641.0,0.820312]
[1773250634110,0.00144,70682.0,70641.0,0.820312]
[1773250634308,0.00144,70682.0,70634.0,0.0014]
[1773250634508,0.1259004,70680.0,70635.0,0.0014]
[1773250634712,0.1259004,70680.0,70636.0,0.0014]
[1773250634923,0.00144,70679.0,70636.0,0.0014]
[1773250635357,0.00144,70678.0,70636.0,0.0014]
[1773250635562,0.1259004,70680.0,70636.0,0.0014]
[1773250635563,0.00035728,70669.0,70636.0,0.0014]
[1773250635845,0.07075438,70667.0,70637.0,0.07078443]
[1773250635962,0.07075338,70668.0,70637.0,0.07078443]
[1773250636337,0.07075338,70668.0,70636.0,0.07218443]
[1773250636338,0.07075338,70668.0,70636.0,0.07218493]
[1773250636537,0.07111066,70669.0,70640.0,0.1259004]
[1773250636538,0.07111039,70669.0,70640.0,0.1259004]
[1773250636746,0.07111039,70669.0,70636.0,0.07078493]
[1773250636881,0.00144,70668.0,70641.0,0.00144]
[1773250637224,0.00144,70668.0,70636.0,0.07078493]
[1773250637225,0.00144,70667.0,70637.0,0.00144]
[1773250637447,0.07111039,70669.0,70639.0,0.13744]
[1773250637448,0.00144,70666.0,70639.0,0.13744]
[1773250637599,0.00144,70665.0,70639.0,0.13744]
[1773250637807,0.00144,70665.0,70641.0,0.180584]
[1773250638067,0.00144,70665.0,70642.0,0.07077942]
[1773250638199,0.07075428,70668.0,70642.0,0.07077942]
[1773250638399,0.00144,70668.0,70642.0,0.07077942]
[1773250638629,0.00144,70668.0,70641.0,0.07077942]
[1773250638630,0.00144,70668.0,70643.0,0.00144]
[1773250638826,0.00144,70668.0,70640.0,0.002]
[1773250639027,0.00144,70668.0,70630.0,0.473001]
[1773250639228,0.00144,70668.0,70637.0,0.001]
[1773250639443,0.00144,70668.0,70638.0,0.00144]
[1773250639774,0.00144,70668.0,70628.0,0.00012]
[1773250639913,0.07077241,70649.0,70628.0,0.00012]
[1773250640119,0.00114105,70648.0,70628.0,0.00012]
[1773250640556,0.00114105,70648.0,70618.0,0.0008346]
[1773250641013,0.00114105,70648.0,70593.0,0.0708284]
[1773250641014,0.00114105,70648.0,70590.0,0.1188]
[1773250641192,0.00114105,70648.0,70572.0,0.00735433]
[1773250641193,0.00114105,70648.0,70592.0,0.07224396]
[1773250641194,0.1259004,70630.0,70592.0,0.07224396]
[1773250641373,0.00144,70629.0,70592.0,0.07224396]
[1773250641596,0.00144,70628.0,70593.0,0.00136]
[1773250641785,0.0014,70627.0,70593.0,0.00136]
[1773250641960,0.07079646,70625.0,70594.0,0.07082754]